fUSD/lending_fUSD_20260518
["ID","MTS","AMOUNT","RATE_DAILY","PERIOD"]
[422567987,1779099032000,-500.0,0.00014999,2]
[422568004,1779099032000,-500.0,0.00014999,2]
[422567975,1779099032000,-150.0,0.00014986,2]
[422567978,1779099032000,-150.00000002,0.00014986,2]
[422567977,1779099032000,-151.31876581,0.00014986,2]
[422567979,1779099032000,-153.50192,0.00014986,2]
[422567976,1779099032000,-150.0,0.00014986,2]
[422567986,1779099032000,-590.14370806,0.00014999,2]
[422567985,1779099032000,-279.54210424,0.00014999,2]
[422567984,1779099032000,-332.28142221,0.00014999,2]
[422567980,1779099032000,-164.93102535,0.00014986,2]
[422567982,1779099032000,-500.0,0.00014999,2]
[422567981,1779099032000,-150.0,0.00014986,2]
[422567983,1779099032000,-500.0,0.00014999,2]
[422568006,1779099032000,-500.0,0.00014999,2]
[422567990,1779099032000,-472.87268765,0.00014999,2]
[422567988,1779099032000,-500.0,0.00014999,2]
[422568030,1779099032000,-500.0,0.00014999,2]
[422567991,1779099032000,-500.0,0.00014999,2]
[422567989,1779099032000,-500.0,0.00014999,2]
[422567995,1779099032000,-466.36300796,0.00014999,2]
[422567992,1779099032000,-500.0,0.00014999,2]
[422567993,1779099032000,-500.0,0.00014999,2]
[422567997,1779099032000,-500.0,0.00014999,2]
[422567994,1779099032000,-500.0,0.00014999,2]
[422567996,1779099032000,-500.0,0.00014999,2]
[422567999,1779099032000,-500.0,0.00014999,2]
[422568001,1779099032000,-500.0,0.00014999,2]
[422567998,1779099032000,-500.0,0.00014999,2]
[422568031,1779099032000,-500.0,0.00014999,2]
[422568033,1779099032000,-500.0,0.00014999,2]
[422568027,1779099032000,-500.0,0.00014999,2]
[422568059,1779099032000,-525.56354353,0.00014999,2]
[422568066,1779099032000,-1102.65356766,0.00014999,5]
[422568076,1779099032000,-602.82271367,0.00014999,2]
[422568065,1779099032000,-250.0,0.00014999,2]
[422568067,1779099032000,-1102.65356766,0.00014999,5]
[422568077,1779099032000,-602.82271367,0.00014999,2]
[422568026,1779099032000,-500.0,0.00014999,2]
[422568071,1779099032000,-602.82271367,0.00014999,2]
[422568072,1779099032000,-602.82271367,0.00014999,2]
[422568070,1779099032000,-602.82271367,0.00014999,2]
[422568075,1779099032000,-602.82271367,0.00014999,2]
[422568068,1779099032000,-602.82271367,0.00014999,2]
[422568069,1779099032000,-298.31642074,0.00014999,2]
[422568073,1779099032000,-602.82271367,0.00014999,2]
[422568078,1779099032000,-602.82271367,0.00014999,2]
[422568079,1779099032000,-602.82271367,0.00014999,2]
[422568086,1779099032000,-602.82271367,0.00014999,2]
[422568084,1779099032000,-602.82271367,0.00014999,2]
[422568081,1779099032000,-602.82271367,0.00014999,2]
[422568082,1779099032000,-602.82271367,0.00014999,2]
[422568080,1779099032000,-602.82271367,0.00014999,2]
[422568083,1779099032000,-602.82271367,0.00014999,2]
[422568085,1779099032000,-602.82271367,0.00014999,2]
[422568088,1779099032000,-602.82271367,0.00014999,2]
[422568087,1779099032000,-602.82271367,0.00014999,2]
[422568062,1779099032000,-500.0,0.00014999,2]
[422568064,1779099032000,-500.0,0.00014999,2]
[422568074,1779099032000,-602.82271367,0.00014999,2]
[422568063,1779099032000,-500.0,0.00014999,2]
[422568034,1779099032000,-500.0,0.00014999,2]
[422568044,1779099032000,-500.0,0.00014999,2]
[422568045,1779099032000,-500.0,0.00014999,2]
[422568036,1779099032000,-500.0,0.00014999,2]
[422568060,1779099032000,-500.0,0.00014999,2]
[422568035,1779099032000,-500.0,0.00014999,2]
[422568038,1779099032000,-500.0,0.00014999,2]
[422568039,1779099032000,-500.0,0.00014999,2]
[422568041,1779099032000,-500.0,0.00014999,2]
[422568042,1779099032000,-500.0,0.00014999,2]
[422568040,1779099032000,-500.0,0.00014999,2]
[422568043,1779099032000,-500.0,0.00014999,2]
[422568047,1779099032000,-500.0,0.00014999,2]
[422568037,1779099032000,-500.0,0.00014999,2]
[422568046,1779099032000,-500.0,0.00014999,2]
[422568057,1779099032000,-500.0,0.00014999,2]
[422568058,1779099032000,-500.0,0.00014999,2]
[422568056,1779099032000,-500.0,0.00014999,2]
[422568055,1779099032000,-500.0,0.00014999,2]
[422568054,1779099032000,-500.0,0.00014999,2]
[422568061,1779099032000,-500.0,0.00014999,2]
[422568052,1779099032000,-500.0,0.00014999,2]
[422568051,1779099032000,-500.0,0.00014999,2]
[422568048,1779099032000,-500.0,0.00014999,2]
[422568049,1779099032000,-500.0,0.00014999,2]
[422568050,1779099032000,-500.0,0.00014999,2]
[422568053,1779099032000,-500.0,0.00014999,2]
[422568098,1779099033000,-500.0,0.00014999,2]
[422568104,1779099033000,-500.0,0.00014999,2]
[422568103,1779099033000,-500.0,0.00014999,2]
[422568105,1779099033000,-500.0,0.00014999,2]
[422568102,1779099033000,-500.0,0.00014999,2]
[422568100,1779099033000,-343.01612955,0.00014999,2]
[422568099,1779099033000,-156.98387045,0.00014999,2]
[422568097,1779099033000,-602.82271367,0.00014999,2]
[422568092,1779099033000,-500.0,0.00014999,2]
[422568095,1779099033000,-500.0,0.00014999,2]
[422568096,1779099033000,-500.0,0.00014999,2]
[422568094,1779099033000,-500.0,0.00014999,2]
[422568091,1779099033000,-500.0,0.00014999,2]
[422568090,1779099033000,-500.0,0.00014999,2]
[422568089,1779099033000,-602.82271367,0.00014999,2]
[422568101,1779099033000,-500.0,0.00014999,2]
[422568093,1779099033000,-500.0,0.00014999,2]
[422568107,1779099033000,-500.0,0.00014999,2]
[422568121,1779099033000,-343.29292514,0.00015,2]
[422568109,1779099033000,-500.0,0.00014999,2]
[422568106,1779099033000,-500.0,0.00014999,2]
[422568123,1779099033000,-3366.73601876,0.00015,2]
[422568125,1779099033000,-927.55529614,0.00015,2]
[422568124,1779099033000,-693.04329282,0.00015,2]
[422568118,1779099033000,-3198.14111498,0.00015,2]
[422568117,1779099033000,-666.0,0.00014999,2]
[422568116,1779099033000,-300.0,0.00014999,2]
[422568113,1779099033000,-602.82271367,0.00014999,2]
[422568122,1779099033000,-868.52832,0.00015,2]
[422568114,1779099033000,-602.82271367,0.00014999,2]
[422568111,1779099033000,-500.0,0.00014999,2]
[422568119,1779099033000,-16977.70514038,0.00015,2]
[422568108,1779099033000,-500.0,0.00014999,2]
[422568120,1779099033000,-13978.86332071,0.00015,2]
[422568112,1779099033000,-200.16128818,0.00014999,2]
[422568110,1779099033000,-500.0,0.00014999,2]
[422568115,1779099033000,-500.36909132,0.00014999,2]
[422568131,1779099038000,-1502.49797727,0.00014899,2]
[422568132,1779099038000,-70280.52325097,0.00015,2]
[422568134,1779099038000,-824.72,0.00015,2]
[422568133,1779099038000,-7325018.21853746,0.00015,2]
[422568136,1779099038000,-16222.30078291,0.00015,2]
[422568135,1779099038000,-6006691.90234051,0.00015,2]
[422568146,1779099040000,-573.20779169,0.00015,2]
[422568145,1779099040000,-1502.49797727,0.00014899,2]
[422568147,1779099040000,-335.38,0.00015,2]
[422568149,1779099040000,-4030.55,0.00015,2]
[422568150,1779099040000,-6410.09324054,0.00015,2]
[422568151,1779099040000,-67213.10425603,0.00015,2]
[422568148,1779099040000,-847.33266475,0.00015,2]
[422568152,1779099040000,-71487.4801239,0.00015,2]
[422568166,1779099043000,-35000.00457661,0.00015,2]
[422568167,1779099043000,-400.00129797,0.00015,2]
[422568186,1779099045000,-1502.49797727,0.00014899,2]
[422568187,1779099045000,-3832.18978777,0.00015,2]
[422568188,1779099046000,-581.0,0.00015,2]
[422568189,1779099046000,-2786.293386,0.00015,2]
[422568191,1779099046000,-9339.12285873,0.00015,2]
[422568193,1779099046000,-384.25,0.00015,2]
[422568192,1779099046000,-20271.94527107,0.00015,2]
[422568190,1779099046000,-7824.16091657,0.00015,2]
[422568208,1779099104000,451.305084,0.00023275,120]
[422568209,1779099109000,167.240189,0.00024255,120]
[422568210,1779099146000,225.652542,0.00023909,120]
[422568212,1779099430000,173.11,0.00010034,2]
[422568213,1779099512000,242.614278,0.00023909,120]
[422568218,1779100008000,-150.0,0.00014799,2]
[422568219,1779100008000,-49.11471943,0.00014799,2]
[422568225,1779100232000,-94224.83621491,0.000147,2]
[422568221,1779100232000,-898.19195057,0.00014699,2]
[422568220,1779100232000,-252.80804943,0.00014699,2]
[422568222,1779100232000,-775.34097388,0.000147,2]
[422568223,1779100232000,-750.54602906,0.000147,2]
[422568226,1779100232000,-7421.38978145,0.000147,2]
[422568224,1779100232000,-257.8752,0.000147,2]
[422568227,1779100232000,-655.85593076,0.000147,2]
[422568228,1779100232000,-429.8224,0.000147,2]
[422568229,1779100232000,-2993.88054873,0.000147,2]
[422568246,1779100242000,-1431.28670216,0.000147,2]
[422568245,1779100242000,-1543.74726639,0.000147,2]
[422568247,1779100242000,-508.28615974,0.000147,2]
[422568250,1779100242000,-701.21521527,0.000147,2]
[422568248,1779100242000,-1582.99740354,0.000147,2]
[422568292,1779100243000,-500.0,0.00014849,2]
[422568271,1779100243000,-500.0,0.00014849,2]
[422568279,1779100243000,-500.0,0.00014849,2]
[422568274,1779100243000,-500.0,0.00014849,2]
[422568280,1779100243000,-500.0,0.00014849,2]
[422568278,1779100243000,-500.0,0.00014849,2]
[422568277,1779100243000,-500.0,0.00014849,2]
[422568286,1779100243000,-500.0,0.00014849,2]
[422568284,1779100243000,-500.0,0.00014849,2]
[422568282,1779100243000,-500.0,0.00014849,2]
[422568289,1779100243000,-500.0,0.00014849,2]
[422568272,1779100243000,-500.0,0.00014849,2]
[422568301,1779100243000,-500.0,0.00014849,2]
[422568303,1779100243000,-500.0,0.00014849,2]
[422568307,1779100243000,-500.0,0.00014849,2]
[422568305,1779100243000,-500.0,0.00014849,2]
[422568295,1779100243000,-500.0,0.00014849,2]
[422568283,1779100243000,-500.0,0.00014849,2]
[422568275,1779100243000,-500.0,0.00014849,2]
[422568268,1779100243000,-500.0,0.00014849,2]
[422568273,1779100243000,-500.0,0.00014849,2]
[422568294,1779100243000,-500.0,0.00014849,2]
[422568257,1779100243000,-577.52652402,0.00014848,2]
[422568258,1779100243000,-500.0,0.00014849,2]
[422568255,1779100243000,-30593.97244799,0.000147,2]
[422568256,1779100243000,-400.0,0.000148,5]
[422568267,1779100243000,-500.0,0.00014849,2]
[422568266,1779100243000,-500.0,0.00014849,2]
[422568264,1779100243000,-500.0,0.00014849,2]
[422568262,1779100243000,-500.0,0.00014849,2]
[422568260,1779100243000,-218.48477866,0.00014849,2]
[422568265,1779100243000,-500.0,0.00014849,2]
[422568263,1779100243000,-500.0,0.00014849,2]
[422568261,1779100243000,-500.0,0.00014849,2]
[422568269,1779100243000,-500.0,0.00014849,2]
[422568259,1779100243000,-500.0,0.00014849,2]
[422568270,1779100243000,-500.0,0.00014849,2]
[422568281,1779100243000,-500.0,0.00014849,2]
[422568276,1779100243000,-500.0,0.00014849,2]
[422568297,1779100243000,-500.0,0.00014849,2]
[422568315,1779100243000,-500.0,0.00014849,2]
[422568311,1779100243000,-500.0,0.00014849,2]
[422568363,1779100243000,-502.31070306,0.00014849,2]
[422568366,1779100243000,-502.31070306,0.00014849,2]
[422568354,1779100243000,-502.31070306,0.00014849,2]
[422568350,1779100243000,-502.31070306,0.00014849,2]
[422568356,1779100243000,-502.31070306,0.00014849,2]
[422568353,1779100243000,-502.31070306,0.00014849,2]
[422568358,1779100243000,-502.31070306,0.00014849,2]
[422568368,1779100243000,-502.31070306,0.00014849,2]
[422568361,1779100243000,-502.31070306,0.00014849,2]
[422568375,1779100243000,-502.31070306,0.00014849,2]
[422568377,1779100243000,-502.31070306,0.00014849,2]
[422568379,1779100243000,-502.31070306,0.00014849,2]
[422568381,1779100243000,-502.31070306,0.00014849,2]
[422568383,1779100243000,-502.31070306,0.00014849,2]
[422568385,1779100243000,-502.31070306,0.00014849,2]
[422568386,1779100243000,-502.31070306,0.00014849,2]
[422568387,1779100243000,-502.31070306,0.00014849,2]
[422568299,1779100243000,-500.0,0.00014849,2]
[422568373,1779100243000,-502.31070306,0.00014849,2]
[422568337,1779100243000,-502.31070306,0.00014849,2]
[422568371,1779100243000,-502.31070306,0.00014849,2]
[422568338,1779100243000,-502.31070306,0.00014849,2]
[422568320,1779100243000,-500.0,0.00014849,2]
[422568313,1779100243000,-500.0,0.00014849,2]
[422568327,1779100243000,-502.31070306,0.00014849,2]
[422568323,1779100243000,-502.31070306,0.00014849,2]
[422568318,1779100243000,-500.0,0.00014849,2]
[422568317,1779100243000,-500.0,0.00014849,2]
[422568333,1779100243000,-502.31070306,0.00014849,2]
[422568325,1779100243000,-502.31070306,0.00014849,2]
[422568322,1779100243000,-502.31070306,0.00014849,2]
[422568340,1779100243000,-502.31070306,0.00014849,2]
[422568342,1779100243000,-502.31070306,0.00014849,2]
[422568344,1779100243000,-502.31070306,0.00014849,2]
[422568331,1779100243000,-502.31070306,0.00014849,2]
[422568346,1779100243000,-502.31070306,0.00014849,2]
[422568348,1779100243000,-502.31070306,0.00014849,2]
[422568335,1779100243000,-502.31070306,0.00014849,2]
[422568329,1779100243000,-502.31070306,0.00014849,2]
[422568309,1779100243000,-258.05114783,0.00014849,2]
[422568436,1779100244000,-264.34442925,0.00014999,2]
[422568432,1779100244000,-500.0,0.00014999,2]
[422568430,1779100244000,-500.0,0.00014999,2]
[422568440,1779100244000,-500.0,0.00014999,2]
[422568434,1779100244000,-512.41423198,0.00014999,2]
[422568423,1779100244000,-500.0,0.00014999,2]
[422568427,1779100244000,-500.0,0.00014999,2]
[422568438,1779100244000,-500.0,0.00014999,2]
[422568421,1779100244000,-232.59699555,0.00014999,2]
[422568425,1779100244000,-500.0,0.00014999,2]
[422568442,1779100244000,-500.0,0.00014999,2]
[422568456,1779100244000,-268.0,0.00015615,2]
[422568448,1779100244000,-1204677.62817632,0.00015,2]
[422568446,1779100244000,-500.0,0.00014999,2]
[422568458,1779100244000,-372.0,0.00015785,2]
[422568454,1779100244000,-15253.752398,0.00015152,2]
[422568450,1779100244000,-2909.4364775,0.00015,2]
[422568452,1779100244000,-2793.6617551,0.00015,2]
[422568460,1779100244000,-150.0,0.00015891,2]
[422568472,1779100244000,-244.325,0.00016812,2]
[422568470,1779100244000,-403.35120118,0.00016757,2]
[422568417,1779100244000,-500.0,0.00014999,2]
[422568447,1779100244000,-500.0,0.00014999,2]
[422568419,1779100244000,-500.0,0.00014999,2]
[422568394,1779100244000,-624.51641908,0.00014849,2]
[422568411,1779100244000,-463.10059564,0.00014999,2]
[422568474,1779100244000,-150.076,0.00016812,2]
[422568392,1779100244000,-502.31070306,0.00014849,2]
[422568390,1779100244000,-502.31070306,0.00014849,2]
[422568391,1779100244000,-502.31070306,0.00014849,2]
[422568393,1779100244000,-624.51641908,0.00014849,2]
[422568389,1779100244000,-502.31070306,0.00014849,2]
[422568403,1779100244000,-800.0,0.000149,5]
[422568398,1779100244000,-624.51641908,0.00014849,2]
[422568400,1779100244000,-624.51641908,0.00014849,2]
[422568396,1779100244000,-624.51641908,0.00014849,2]
[422568406,1779100244000,-2133.10354456,0.000149,2]
[422568399,1779100244000,-624.51641908,0.00014849,2]
[422568395,1779100244000,-624.51641908,0.00014849,2]
[422568404,1779100244000,-403.35120124,0.000149,2]
[422568401,1779100244000,-80338.50837033,0.0001485,2]
[422568402,1779100244000,-5000.0,0.000149,2]
[422568408,1779100244000,-500.0,0.00014999,2]
[422568409,1779100244000,-500.0,0.00014999,2]
[422568413,1779100244000,-195.67947297,0.00014999,2]
[422568414,1779100244000,-500.0,0.00014999,2]
[422568415,1779100244000,-381.01088136,0.00014999,2]
[422568412,1779100244000,-500.0,0.00014999,2]
[422568397,1779100244000,-624.51641908,0.00014849,2]
[422568476,1779100244000,-194.615,0.00016812,2]
[422568388,1779100244000,-502.31070306,0.00014849,2]
[422568464,1779100244000,-158.8442374,0.00016279,2]
[422568539,1779100244000,-500.0,0.00017808,2]
[422568538,1779100244000,-500.0,0.00017808,2]
[422568537,1779100244000,-500.0,0.00017808,2]
[422568540,1779100244000,-500.0,0.00017808,2]
[422568541,1779100244000,-500.0,0.00017808,2]
[422568530,1779100244000,-500.0,0.00017808,2]
[422568532,1779100244000,-500.0,0.00017808,2]
[422568534,1779100244000,-500.0,0.00017808,2]
[422568535,1779100244000,-500.0,0.00017808,2]
[422568536,1779100244000,-500.0,0.00017808,2]
[422568529,1779100244000,-500.0,0.00017808,2]
[422568542,1779100244000,-500.0,0.00017808,2]
[422568546,1779100244000,-500.0,0.00017808,2]
[422568544,1779100244000,-500.0,0.00017808,2]
[422568547,1779100244000,-500.0,0.00017808,2]
[422568543,1779100244000,-500.0,0.00017808,2]
[422568548,1779100244000,-500.0,0.00017808,2]
[422568550,1779100244000,-500.0,0.00017808,2]
[422568549,1779100244000,-500.0,0.00017808,2]
[422568551,1779100244000,-500.0,0.00017808,2]
[422568552,1779100244000,-500.0,0.00017808,2]
[422568468,1779100244000,-269.8,0.00016438,2]
[422568545,1779100244000,-500.0,0.00017808,2]
[422568527,1779100244000,-500.0,0.00017808,2]
[422568533,1779100244000,-500.0,0.00017808,2]
[422568523,1779100244000,-500.0,0.00017808,2]
[422568466,1779100244000,-2133.10354452,0.00016344,2]
[422568478,1779100244000,-1354.0,0.00016887,2]
[422568514,1779100244000,-500.0,0.00017808,2]
[422568480,1779100244000,-418.0,0.00016887,2]
[422568482,1779100244000,-2313.0,0.00017237,2]
[422568484,1779100244000,-775.34097379,0.00017633,2]
[422568486,1779100244000,-2133.10354452,0.00017789,2]
[422568489,1779100244000,-500.0,0.00017808,2]
[422568490,1779100244000,-500.0,0.00017808,2]
[422568493,1779100244000,-500.0,0.00017808,2]
[422568499,1779100244000,-500.0,0.00017808,2]
[422568501,1779100244000,-500.0,0.00017808,2]
[422568462,1779100244000,-775.34097379,0.00016167,2]
[422568503,1779100244000,-500.0,0.00017808,2]
[422568497,1779100244000,-500.0,0.00017808,2]
[422568525,1779100244000,-500.0,0.00017808,2]
[422568521,1779100244000,-500.0,0.00017808,2]
[422568518,1779100244000,-500.0,0.00017808,2]
[422568516,1779100244000,-500.0,0.00017808,2]
[422568512,1779100244000,-500.0,0.00017808,2]
[422568507,1779100244000,-500.0,0.00017808,2]
[422568505,1779100244000,-500.0,0.00017808,2]
[422568495,1779100244000,-500.0,0.00017808,2]
[422568510,1779100244000,-500.0,0.00017808,2]
[422568562,1779100245000,-500.0,0.00017808,2]
[422568569,1779100245000,-331.638682,0.00017808,2]
[422568571,1779100245000,-500.0,0.00017808,2]
[422568575,1779100245000,-500.0,0.00017808,2]
[422568567,1779100245000,-144.40111734,0.00017808,2]
[422568565,1779100245000,-81.85254549,0.00017808,2]
[422568566,1779100245000,-500.0,0.00017808,2]
[422568564,1779100245000,-418.14745451,0.00017808,2]
[422568563,1779100245000,-446.57383195,0.00017808,2]
[422568556,1779100245000,-500.0,0.00017808,2]
[422568558,1779100245000,-500.0,0.00017808,2]
[422568555,1779100245000,-500.0,0.00017808,2]
[422568560,1779100245000,-500.0,0.00017808,2]
[422568557,1779100245000,-500.0,0.00017808,2]
[422568561,1779100245000,-500.0,0.00017808,2]
[422568553,1779100245000,-500.0,0.00017808,2]
[422568554,1779100245000,-500.0,0.00017808,2]
[422568572,1779100245000,-500.0,0.00017808,2]
[422568559,1779100245000,-500.0,0.00017808,2]
[422568570,1779100245000,-168.361318,0.00017808,2]
[422568568,1779100245000,-355.59888266,0.00017808,2]
[422568573,1779100245000,-500.0,0.00017808,2]
[422568574,1779100245000,-500.0,0.00017808,2]
[422568594,1779100245000,-215.11887611,0.00018077,2]
[422568593,1779100245000,-488.52732449,0.00017808,2]
[422568591,1779100245000,-480.72913844,0.00017808,2]
[422568589,1779100245000,-19.27086156,0.00017808,2]
[422568592,1779100245000,-11.47267551,0.00017808,2]
[422568587,1779100245000,-500.0,0.00017808,2]
[422568584,1779100245000,-500.0,0.00017808,2]
[422568595,1779100245000,-250.0,0.00018332,2]
[422568586,1779100245000,-500.0,0.00017808,2]
[422568582,1779100245000,-295.27968761,0.00017808,2]
[422568585,1779100245000,-500.0,0.00017808,2]
[422568578,1779100245000,-500.0,0.00017808,2]
[422568577,1779100245000,-168.361318,0.00017808,2]
[422568596,1779100245000,-202.48192543,0.0001841,2]
[422568576,1779100245000,-331.638682,0.00017808,2]
[422568581,1779100245000,-204.72031239,0.00017808,2]
[422568580,1779100245000,-416.94615047,0.00017808,2]
[422568583,1779100245000,-500.0,0.00017808,2]
[422568579,1779100245000,-83.05384953,0.00017808,2]
[422568603,1779100246000,-403.35120118,0.00018614,2]
[422568598,1779100246000,-262.06499907,0.00016857,2]
[422568599,1779100246000,-441.39494545,0.00016857,2]
[422568600,1779100246000,-226.54005548,0.00016857,2]
[422568601,1779100246000,-67.31807457,0.0001841,2]
[422568602,1779100246000,-372.0,0.000185,2]
[422568605,1779100246000,-219.2168054,0.00019,3]
[422568604,1779100246000,-355.0,0.00018858,5]
[422568606,1779100246000,-5310.7831946,0.00019,3]
[422568609,1779100246000,-165.9,0.00019271,2]
[422568607,1779100246000,-775.34097379,0.000191,2]
[422568610,1779100246000,-182.1,0.00019369,2]
[422568608,1779100246000,-2133.10354452,0.00019233,2]
[422568611,1779100246000,-2000.0,0.00019573,2]
[422568616,1779100246000,-151.0,0.00019598,2]
[422568613,1779100246000,-500.0,0.00019598,2]
[422568614,1779100246000,-1934.38338737,0.00019598,2]
[422568612,1779100246000,-500.0,0.00019598,2]
[422568615,1779100246000,-151.0,0.00019598,2]
[422568644,1779100247000,-151.0,0.00019598,2]
[422568648,1779100247000,-151.0,0.00019598,2]
[422568643,1779100247000,-151.0,0.00019598,2]
[422568642,1779100247000,-151.0,0.00019598,2]
[422568640,1779100247000,-151.0,0.00019598,2]
[422568649,1779100247000,-151.0,0.00019598,2]
[422568646,1779100247000,-151.0,0.00019598,2]
[422568650,1779100247000,-151.0,0.00019598,2]
[422568653,1779100247000,-173.11,0.00019674,2]
[422568647,1779100247000,-151.0,0.00019598,2]
[422568652,1779100247000,-5530.0,0.000196,5]
[422568655,1779100247000,-418.0,0.00019887,2]
[422568641,1779100247000,-151.0,0.00019598,2]
[422568651,1779100247000,-151.0,0.00019598,2]
[422568657,1779100247000,-300.000003,0.0002,2]
[422568654,1779100247000,-930.0,0.00019857,2]
[422568659,1779100247000,-712.0,0.0002,2]
[422568645,1779100247000,-151.0,0.00019598,2]
[422568638,1779100247000,-151.0,0.00019598,2]
[422568618,1779100247000,-151.0,0.00019598,2]
[422568639,1779100247000,-151.0,0.00019598,2]
[422568658,1779100247000,-167.0,0.0002,2]
[422568617,1779100247000,-151.0,0.00019598,2]
[422568621,1779100247000,-151.0,0.00019598,2]
[422568622,1779100247000,-151.0,0.00019598,2]
[422568619,1779100247000,-151.0,0.00019598,2]
[422568623,1779100247000,-151.0,0.00019598,2]
[422568624,1779100247000,-151.0,0.00019598,2]
[422568625,1779100247000,-151.0,0.00019598,2]
[422568628,1779100247000,-151.0,0.00019598,2]
[422568627,1779100247000,-206.33422799,0.00019598,2]
[422568626,1779100247000,-151.0,0.00019598,2]
[422568629,1779100247000,-151.0,0.00019598,2]
[422568633,1779100247000,-151.0,0.00019598,2]
[422568630,1779100247000,-213.96859442,0.00019598,2]
[422568632,1779100247000,-151.0,0.00019598,2]
[422568631,1779100247000,-151.0,0.00019598,2]
[422568634,1779100247000,-151.0,0.00019598,2]
[422568635,1779100247000,-151.0,0.00019598,2]
[422568637,1779100247000,-151.0,0.00019598,2]
[422568636,1779100247000,-151.0,0.00019598,2]
[422568662,1779100247000,-160.0,0.0002,2]
[422568672,1779100247000,-500.0,0.00020736,2]
[422568661,1779100247000,-10000.0,0.0002,7]
[422568689,1779100247000,-712.0,0.00022,2]
[422568691,1779100247000,-217.0,0.00022,2]
[422568688,1779100247000,-167.0,0.00022,2]
[422568694,1779100247000,-670.58624095,0.00022217,2]
[422568695,1779100247000,-194.72792766,0.00022217,2]
[422568696,1779100247000,-200.0,0.00022217,2]
[422568690,1779100247000,-160.0,0.00022,2]
[422568693,1779100247000,-775.34097379,0.00022033,2]
[422568687,1779100247000,-2023.68869602,0.00022,2]
[422568699,1779100247000,-151.0,0.00022217,2]
[422568697,1779100247000,-1328.27659266,0.00022217,2]
[422568698,1779100247000,-194.72792766,0.00022217,2]
[422568701,1779100247000,-152.0,0.00022217,2]
[422568700,1779100247000,-194.72792766,0.00022217,2]
[422568703,1779100247000,-194.72792766,0.00022217,2]
[422568702,1779100247000,-152.0,0.00022217,2]
[422568704,1779100247000,-151.0,0.00022272,2]
[422568660,1779100247000,-200.0,0.0002,10]
[422568692,1779100247000,-2000.0,0.0002202,2]
[422568683,1779100247000,-387.0,0.0002123,5]
[422568705,1779100247000,-397.19257329,0.00022329,2]
[422568684,1779100247000,-154.21402803,0.00021915,2]
[422568665,1779100247000,-2005.95557271,0.00020146,2]
[422568664,1779100247000,-300.0,0.000201,10]
[422568669,1779100247000,-360.34771605,0.00020549,2]
[422568666,1779100247000,-240.9462934,0.00020146,2]
[422568671,1779100247000,-775.34097379,0.00020567,2]
[422568674,1779100247000,-785.01,0.00020951,2]
[422568675,1779100247000,-6023.27431718,0.00020951,2]
[422568667,1779100247000,-269.8,0.00020381,2]
[422568663,1779100247000,-217.0,0.0002,2]
[422568668,1779100247000,-403.35120118,0.00020471,2]
[422568677,1779100247000,-167.0,0.00021,2]
[422568676,1779100247000,-297.55568282,0.00020951,2]
[422568678,1779100247000,-712.0,0.00021,2]
[422568679,1779100247000,-160.0,0.00021,2]
[422568680,1779100247000,-217.0,0.00021,2]
[422568681,1779100247000,-2313.0,0.00021174,2]
[422568682,1779100247000,-429.0,0.0002123,5]
[422568686,1779100247000,-823.00321265,0.00021918,2]